bitfinex-derivatives/quotes_BTCF0:USTF0_20250803
["timestamp","ask_amount","ask_price","bid_price","bid_amount"]
[1754196927301,0.12749,113520.0,113510.0,1.16870875]
[1754196927490,0.05379,113520.0,113510.0,1.16870875]
[1754196927696,0.2299937,113520.0,113510.0,1.16870875]
[1754196928005,0.3036937,113520.0,113510.0,1.16870875]
[1754196930103,0.2996937,113520.0,113510.0,1.16870875]
[1754196930296,0.3016937,113520.0,113510.0,1.16870875]
[1754196930494,0.3006937,113520.0,113510.0,1.16870875]
[1754196938614,0.2862337,113520.0,113510.0,1.16870875]
[1754196939414,0.2514237,113520.0,113510.0,1.16870875]
[1754196942421,0.07522,113520.0,113510.0,1.16870875]
[1754196944721,0.10773,113520.0,113510.0,1.16870875]
[1754196945621,0.2839337,113520.0,113510.0,1.16870875]
[1754196947622,0.2839337,113520.0,113510.0,0.80790875]
[1754196947826,0.2839337,113520.0,113510.0,1.16870875]
[1754196948930,0.10773,113520.0,113510.0,1.16870875]
[1754196952930,0.07522,113520.0,113510.0,1.16870875]
[1754196954327,0.052,113520.0,113510.0,1.16870875]
[1754196958939,0.02757,113520.0,113510.0,1.16870875]
[1754196962240,0.002,113520.0,113510.0,1.16870875]
[1754196965641,0.2248137,113520.0,113510.0,0.80790875]
[1754196965949,0.2943637,113520.0,113510.0,0.80790875]
[1754196971948,0.1034,113520.0,113510.0,0.80790875]
[1754196973448,0.07152,113520.0,113510.0,0.80790875]
[1754196973951,0.07152,113520.0,113510.0,1.16870875]
[1754196975946,0.05049,113520.0,113510.0,1.16870875]
[1754196976549,0.05049,113520.0,113510.0,0.80790875]
[1754196980050,0.02758,113520.0,113510.0,0.80790875]
[1754196980857,0.02758,113520.0,113510.0,1.16870875]
[1754196981960,0.002,113520.0,113510.0,1.16870875]
[1754196985463,0.002,113520.0,113510.0,0.80790875]
[1754196985859,0.1782037,113520.0,113510.0,0.80790875]
[1754196990969,0.1772037,113520.0,113510.0,0.80790875]
[1754196991361,0.2013137,113520.0,113510.0,0.80790875]
[1754196991770,0.2013137,113520.0,113510.0,0.37467004]
[1754196991963,0.2013137,113520.0,113510.0,0.80790875]
[1754196992359,0.2003137,113520.0,113510.0,0.80790875]
[1754196992562,0.2013137,113520.0,113510.0,0.80790875]
[1754197001581,0.2013137,113520.0,113510.0,1.16870875]
[1754197001780,0.02511,113520.0,113510.0,0.80790875]
[1754197002080,0.001,113520.0,113510.0,1.16870875]
[1754197013581,0.001,113520.0,113510.0,1.60194746]
[1754197022287,0.3387389,113550.0,113540.0,0.2956625]
[1754197022586,0.77197761,113550.0,113540.0,0.72890121]
[1754197023378,0.3387389,113550.0,113540.0,0.72890121]
[1754197023988,0.77197761,113550.0,113540.0,0.72890121]
[1754197027288,0.77597761,113550.0,113540.0,0.72890121]
[1754197028691,0.77497761,113550.0,113540.0,0.72890121]
[1754197030591,0.3407389,113550.0,113540.0,0.72890121]
[1754197030781,0.77397761,113550.0,113540.0,0.72890121]
[1754197035593,1.56801632,113550.0,113540.0,0.03035]
[1754197035883,0.2947026,113540.0,113530.0,0.0463]
[1754197036086,1.08874131,113540.0,113530.0,0.0463]
[1754197036291,1.08874131,113540.0,113530.0,0.2224881]
[1754197036491,1.08874131,113540.0,113530.0,0.2571881]
[1754197037591,1.08974131,113540.0,113530.0,0.2571881]
[1754197037785,1.08974131,113540.0,113530.0,0.081]
[1754197038192,1.08974131,113540.0,113530.0,0.2571882]
[1754197040895,1.08974131,113540.0,113530.0,0.2718682]
[1754197041600,0.6565026,113540.0,113530.0,0.2956782]
[1754197041791,1.08974131,113540.0,113530.0,0.2956782]
[1754197042895,0.2947337,113520.0,113510.0,0.70642162]
[1754197043089,1.08877241,113520.0,113510.0,0.38032162]
[1754197043290,1.08877241,113520.0,113510.0,0.82824033]
[1754197043492,1.08877241,113520.0,113510.0,0.85205033]
[1754197044099,1.08877241,113520.0,113510.0,0.85305033]
[1754197044393,1.08877241,113520.0,113510.0,0.85405033]
[1754197044599,1.08877241,113520.0,113510.0,0.84532376]
[1754197047599,1.08877241,113520.0,113510.0,0.8540646]
[1754197052700,1.08877241,113520.0,113510.0,0.77213376]
[1754197053092,1.08877241,113520.0,113510.0,0.80696376]
[1754197053405,1.08877241,113520.0,113510.0,0.82194376]
[1754197053700,1.08877241,113520.0,113510.0,0.84689376]
[1754197056308,1.08877241,113520.0,113510.0,0.85580111]
[1754197059505,0.6555337,113520.0,113510.0,0.85580111]
[1754197059691,1.08877241,113520.0,113510.0,0.85580111]
[1754197061104,0.6555337,113520.0,113510.0,0.85580111]
[1754197061307,1.08877241,113520.0,113510.0,0.85580111]
[1754197065314,1.08877241,113520.0,113510.0,0.72583376]
[1754197065497,1.08877241,113520.0,113510.0,0.84883376]
[1754197066610,1.08877241,113520.0,113510.0,0.41559505]
[1754197066909,1.08877241,113520.0,113510.0,0.84883376]
[1754197067406,1.52201112,113520.0,113510.0,0.24855235]
[1754197068804,1.08877241,113520.0,113510.0,0.24855235]
[1754197069510,1.52201112,113520.0,113510.0,0.24855235]
[1754197070207,1.08877241,113520.0,113510.0,0.28338235]
[1754197070405,1.08877241,113520.0,113510.0,0.29290235]
[1754197070603,1.08877241,113520.0,113510.0,0.35657235]
[1754197070910,1.08877241,113520.0,113510.0,0.37155235]
[1754197072111,0.6555337,113520.0,113510.0,0.37155235]
[1754197072303,0.5370037,113520.0,113510.0,0.80479106]
[1754197072813,0.1762037,113520.0,113510.0,1.16559106]
[1754197073112,1.12816821,113530.0,113520.0,0.2244436]
[1754197073310,1.12816821,113530.0,113520.0,0.73244231]
[1754197073614,0.81407821,113530.0,113520.0,0.73244231]
[1754197074111,1.17487821,113530.0,113520.0,0.73244231]
[1754197081416,0.81407821,113530.0,113520.0,0.73244231]
[1754197081916,1.17487821,113530.0,113520.0,0.73244231]
[1754197082216,0.81407821,113530.0,113520.0,0.73244231]
[1754197082417,1.17487821,113530.0,113520.0,0.73244231]
[1754197089420,1.17487821,113530.0,113520.0,0.2992036]
[1754197089616,1.17487821,113530.0,113520.0,0.73244231]
[1754197090218,1.17676821,113530.0,113520.0,0.73244231]
[1754197092319,0.81831821,113530.0,113520.0,0.73244231]
[1754197093020,0.3850795,113530.0,113520.0,0.73244231]
[1754197093211,0.81831821,113530.0,113520.0,0.73244231]
[1754197100326,1.17911821,113530.0,113520.0,0.73244231]
[1754197101432,0.3133595,113530.0,113520.0,0.73244231]
[1754197101629,0.3850795,113530.0,113520.0,0.2992036]
[1754197101829,0.3410293,113530.0,113520.0,0.73244231]
[1754197102326,0.77426801,113530.0,113520.0,0.73244231]
[1754197106530,0.28303,113530.0,113520.0,1.09324231]
[1754197106733,0.29698,113530.0,113520.0,0.73244231]
[1754197107121,0.29698,113530.0,113520.0,1.09324231]
[1754197107318,0.2969681,113530.0,113520.0,0.73244231]
[1754197113228,1.05831291,113540.0,113530.0,0.176188]
[1754197113426,1.13134291,113540.0,113530.0,0.72739671]
[1754197114424,1.13234291,113540.0,113530.0,0.72739671]
[1754197118031,1.17913291,113540.0,113530.0,0.72739671]
[1754197118627,0.2212284,113540.0,113530.0,0.72739671]
[1754197118831,0.297005,113540.0,113530.0,0.72739671]
[1754197119031,0.297005,113540.0,113530.0,1.08819671]
[1754197119626,0.2969926,113540.0,113530.0,1.08819671]
[1754197119832,0.02618,113540.0,113530.0,1.08819671]
[1754197120238,0.01664,113540.0,113530.0,1.08819671]
[1754197121535,0.001,113540.0,113530.0,1.08819671]
[1754197129141,0.001,113540.0,113530.0,1.10617262]
[1754197131539,0.001,113540.0,113530.0,0.67293391]
[1754197131738,0.001,113540.0,113530.0,1.10617262]
[1754197131941,0.73023141,113540.0,113530.0,0.93897391]
[1754197132141,0.73023141,113540.0,113530.0,0.31213391]
[1754197132740,0.2969927,113540.0,113530.0,0.31213391]
[1754197139933,0.2969927,113540.0,113530.0,0.24101391]
[1754197140138,0.2969927,113540.0,113530.0,0.31283391]
[1754197152756,0.2969927,113540.0,113530.0,0.60109969]
[1754197152757,0.58525848,113540.0,113530.0,0.60109969]
[1754197156752,0.94605848,113540.0,113530.0,0.60109969]
[1754197158359,0.58525848,113540.0,113530.0,0.60109969]
[1754197158558,0.94605848,113540.0,113530.0,0.60109969]
[1754197161656,0.58525848,113540.0,113530.0,0.60109969]
[1754197163568,0.94605848,113540.0,113530.0,0.60109969]
[1754197165667,0.94605848,113540.0,113530.0,0.46445378]
[1754197165868,0.94605848,113540.0,113530.0,0.176188]
[1754197166065,0.94605848,113540.0,113530.0,0.210248]
[1754197166370,0.94605848,113540.0,113530.0,0.295408]
[1754197168071,0.94605848,113540.0,113530.0,0.58367378]
[1754197173773,0.2969927,113540.0,113530.0,0.58367378]
[1754197174073,0.58525848,113540.0,113530.0,0.58367378]
[1754197175369,0.58525848,113540.0,113530.0,0.295408]
[1754197175672,0.58525848,113540.0,113530.0,0.58367378]
[1754197176372,0.2969927,113540.0,113530.0,0.58367378]
[1754197176572,0.58525848,113540.0,113530.0,0.58367378]
[1754197177666,0.1928127,113540.0,113530.0,0.58367378]
[1754197177867,0.51553848,113540.0,113530.0,0.58367378]
[1754197178068,0.56320848,113540.0,113530.0,0.58367378]
[1754197178272,0.2968027,113540.0,113530.0,0.58367378]
[1754197178473,0.12063,113540.0,113530.0,0.58367378]
[1754197179778,0.2968027,113540.0,113530.0,0.58367378]
[1754197180082,0.12063,113540.0,113530.0,0.58367378]
[1754197180581,0.001,113540.0,113530.0,0.94447378]
[1754197184385,0.001,113540.0,113530.0,1.0236555]
[1754197191789,0.001,113540.0,113530.0,0.94447378]
[1754197193386,0.001,113540.0,113530.0,1.0236555]
[1754197200390,0.0253,113540.0,113530.0,0.73538972]
[1754197200695,0.12142,113540.0,113530.0,0.73538972]
[1754197200898,0.12142,113540.0,113530.0,1.0236555]
[1754197201797,0.05099,113540.0,113530.0,1.0236555]
[1754197202197,0.001,113540.0,113530.0,1.0236555]
[1754197207501,0.001,113540.0,113530.0,1.2899755]
[1754197214399,0.001,113540.0,113530.0,1.21079378]
[1754197215002,0.001,113540.0,113530.0,0.84999378]
[1754197215199,0.001,113540.0,113530.0,1.21079378]
[1754197216707,0.001,113540.0,113530.0,1.29006603]
[1754197218005,0.001,113540.0,113530.0,1.00180025]
[1754197218202,0.001,113540.0,113530.0,1.29006603]
[1754197219210,0.001,113540.0,113530.0,1.29006638]
[1754197223505,0.001,113540.0,113530.0,1.21079378]
[1754197226315,0.001,113540.0,113530.0,0.922528]
[1754197226511,0.001,113540.0,113530.0,1.21079378]
[1754197228715,0.001,113540.0,113530.0,0.922528]
[1754197229014,0.001,113540.0,113530.0,1.21079378]
[1754197230717,0.001,113540.0,113530.0,1.2900709]
[1754197240723,0.001,113540.0,113530.0,1.21079378]
[1754197241225,0.001,113540.0,113530.0,1.29008065]
[1754197245730,0.001,113540.0,113530.0,1.00181487]
[1754197245931,0.001,113540.0,113530.0,1.29008065]
[1754197247434,0.53641888,113540.0,113530.0,0.73549487]
[1754197247634,0.58602888,113540.0,113530.0,0.92987487]
[1754197247935,0.58602888,113540.0,113530.0,0.919908]
[1754197248128,0.94682888,113540.0,113530.0,0.38292]
[1754197248326,0.94682888,113540.0,113530.0,0.2929086]
[1754197248525,0.94682888,113540.0,113530.0,0.2693586]
[1754197248737,0.94682888,113540.0,113530.0,0.2554186]
[1754197249440,0.94682888,113540.0,113530.0,0.2929086]
[1754197251227,0.94682888,113540.0,113530.0,0.2235886]
[1754197251428,0.2967787,113530.0,113520.0,0.4490355]
[1754197251739,0.94584448,113530.0,113520.0,0.4398955]
[1754197251935,1.41028626,113530.0,113520.0,0.4399042]
[1754197252128,1.12202048,113530.0,113520.0,0.4399042]
[1754197253336,1.12202048,113530.0,113520.0,0.1762042]
[1754197261145,1.12202048,113530.0,113520.0,0.2107542]
[1754197261339,1.12202048,113530.0,113520.0,0.2199142]
[1754197261738,0.94584448,113530.0,113520.0,0.2199142]
[1754197262941,0.94584448,113530.0,113520.0,0.1853642]
[1754197263848,0.94584448,113530.0,113520.0,0.2199142]
[1754197264349,0.94584448,113530.0,113520.0,0.1853642]
[1754197265150,0.94584448,113530.0,113520.0,0.1762042]
[1754197265851,0.6575787,113530.0,113520.0,0.1762042]
[1754197266053,0.94584448,113530.0,113520.0,0.1762042]
[1754197267951,0.58504448,113530.0,113520.0,0.1762042]
[1754197268154,0.94584448,113530.0,113520.0,0.1762042]
[1754197271054,0.6575787,113530.0,113520.0,0.2971142]
[1754197271254,0.94584448,113530.0,113520.0,0.2971142]
[1754197272849,0.6575787,113530.0,113520.0,0.2971142]
[1754197273057,0.94584448,113530.0,113520.0,0.2971142]
[1754197276157,0.94584448,113530.0,113520.0,0.2728142]
[1754197276359,0.94584448,113530.0,113520.0,0.2580042]
[1754197278257,0.2922441,113520.0,113510.0,0.44410378]
[1754197278462,0.94130988,113520.0,113510.0,0.51776378]
[1754197278652,1.22957566,113520.0,113510.0,0.37870095]
[1754197279157,0.94130988,113520.0,113510.0,0.49961095]
[1754197279654,0.94130988,113520.0,113510.0,0.50161095]
[1754197279956,1.22957566,113520.0,113510.0,0.50161095]
[1754197280155,1.22957566,113520.0,113510.0,0.33984175]
[1754197280860,1.22957566,113520.0,113510.0,0.37439175]
[1754197281562,1.22957566,113520.0,113510.0,0.41350175]
[1754197281766,0.94130988,113520.0,113510.0,0.41350175]
[1754197289069,0.58050988,113520.0,113510.0,0.41350175]
[1754197289268,0.94130988,113520.0,113510.0,0.41350175]
[1754197290167,0.6530441,113520.0,113510.0,0.41350175]
[1754197290468,0.94130988,113520.0,113510.0,0.41350175]
[1754197292664,0.94130988,113520.0,113510.0,0.39190175]
[1754197292862,1.22957566,113520.0,113510.0,0.07233325]
[1754197293061,1.22957566,113520.0,113510.0,0.24855295]
[1754197293464,1.22957566,113520.0,113510.0,0.07233325]
[1754197299678,1.22957566,113520.0,113510.0,0.07133325]
[1754197299879,1.22957566,113520.0,113510.0,0.07233325]
[1754197301265,1.22957566,113520.0,113510.0,0.002]
[1754197301469,0.2959107,113490.0,113480.0,0.7427439]
[1754197301671,0.58417648,113490.0,113480.0,0.7427439]
[1754197301972,0.58417648,113490.0,113480.0,0.3819439]
[1754197302476,0.94497648,113490.0,113480.0,0.3819439]
[1754197302870,0.94497648,113490.0,113480.0,0.3849439]
[1754197303071,0.94497648,113490.0,113480.0,0.3879439]
[1754197303273,0.94497648,113490.0,113480.0,0.4599574]
[1754197304677,0.94497648,113490.0,113480.0,0.74822318]
[1754197305270,0.94497648,113490.0,113480.0,0.75698948]
[1754197312782,0.94497648,113490.0,113480.0,0.4687237]
[1754197313081,0.94497648,113490.0,113480.0,0.75698948]
[1754197316283,0.94497648,113490.0,113480.0,0.4687237]
[1754197316784,0.94497648,113490.0,113480.0,0.75698948]
[1754197317984,0.6567107,113490.0,113480.0,0.75698948]
[1754197318189,0.94497648,113490.0,113480.0,0.75698948]
[1754197322486,0.58417648,113490.0,113480.0,0.75698948]
[1754197322888,0.58417648,113490.0,113480.0,0.4687237]
[1754197323187,0.94497648,113490.0,113480.0,0.75698948]
[1754197325183,0.94497648,113490.0,113480.0,0.4687237]
[1754197325387,0.94497648,113490.0,113480.0,0.75698948]
[1754197325388,0.76872578,113490.0,113480.0,0.75698948]
[1754197325594,0.94497638,113490.0,113480.0,0.75698948]
[1754197327796,0.94497638,113490.0,113480.0,0.4687237]
[1754197327996,0.6567106,113490.0,113480.0,0.75698948]
[1754197328193,0.94497638,113490.0,113480.0,0.75698948]
[1754197329891,0.3608,113490.0,113480.0,0.75698948]
[1754197330094,0.38601,113500.0,113490.0,0.2931507]
[1754197330301,0.38601,113500.0,113490.0,0.58141648]
[1754197330494,0.5622452,113500.0,113490.0,0.58141648]
[1754197330796,0.5622452,113500.0,113490.0,0.2931507]
[1754197330797,0.6582052,113500.0,113490.0,0.2931507]
[1754197331188,0.6582052,113500.0,113490.0,0.2941507]
[1754197331389,0.6582052,113500.0,113490.0,0.2961507]
[1754197332198,0.2974052,113500.0,113490.0,0.2961507]
[1754197336007,0.6776177,113510.0,113500.0,0.2931351]
[1754197336200,0.7022577,113510.0,113500.0,0.2931351]
[1754197337307,0.7022577,113510.0,113500.0,0.2941351]
[1754197338108,0.48197,113510.0,113500.0,0.2941351]
[1754197338304,0.12117,113510.0,113500.0,0.2941351]
[1754197339606,0.2973896,113510.0,113500.0,0.2941351]
[1754197340508,0.12117,113510.0,113500.0,0.2941351]
[1754197341607,0.12117,113510.0,113500.0,0.6549351]
[1754197344007,0.2973897,113510.0,113500.0,0.6549351]
[1754197345109,0.12117,113510.0,113500.0,0.6549351]
[1754197346111,0.2973896,113510.0,113500.0,0.6549351]
[1754197354918,0.58580249,113510.0,113500.0,0.94334799]
[1754197372635,0.58580249,113510.0,113500.0,0.6549351]
[1754197372836,0.58580249,113510.0,113500.0,0.94334799]
[1754197374232,0.48984249,113510.0,113500.0,0.94334799]
[1754197374535,0.46463249,113510.0,113500.0,0.94334799]
[1754197374940,0.51284249,113510.0,113500.0,0.94334799]
[1754197375238,0.58261249,113510.0,113500.0,0.94334799]
[1754197376135,0.3608,113530.0,113500.0,0.94334799]
[1754197376136,0.37431,113530.0,113500.0,0.76711289]
[1754197376336,0.04761,113530.0,113520.0,1.23416988]
[1754197376531,0.2465286,113530.0,113520.0,1.23416988]
[1754197376732,0.2465286,113530.0,113520.0,0.94575699]
[1754197376941,0.2806586,113530.0,113520.0,0.94575699]
[1754197377141,0.2941686,113530.0,113520.0,0.94575699]
[1754197377635,0.04761,113530.0,113520.0,0.94575699]
[1754197377836,0.02548,113530.0,113520.0,0.94575699]
[1754197378441,0.02548,113530.0,113520.0,1.23416988]
[1754197378940,0.0157,113530.0,113520.0,1.23416988]
[1754197379141,1.03114919,113540.0,113530.0,0.2240686]
[1754197379344,1.03114919,113540.0,113530.0,0.58297149]
[1754197379936,1.03114919,113540.0,113530.0,0.59168173]
[1754197380246,1.03414919,113540.0,113530.0,0.59168173]
[1754197386350,0.7457363,113540.0,113530.0,0.59168173]
[1754197386550,1.03414919,113540.0,113530.0,0.59168173]
[1754197388053,1.03414919,113540.0,113530.0,0.58297149]
[1754197388352,1.03414919,113540.0,113530.0,0.2945586]
[1754197389750,1.03414919,113540.0,113530.0,0.58297149]
[1754197390749,1.03414919,113540.0,113530.0,0.59173011]
[1754197390945,1.03414919,113540.0,113530.0,0.58297149]
[1754197391754,0.7457363,113540.0,113530.0,0.58297149]
[1754197391943,1.03414919,113540.0,113530.0,0.58297149]
[1754197392555,0.3408898,113540.0,113530.0,0.58297149]
[1754197392854,0.62930269,113540.0,113530.0,0.59158759]
[1754197393057,0.3408898,113540.0,113530.0,0.59158759]
[1754197393250,0.62930269,113540.0,113530.0,0.59158759]
[1754197410574,0.3408898,113540.0,113530.0,0.59158759]
[1754197410776,0.62930269,113540.0,113530.0,0.59158759]
[1754197420478,0.62930269,113540.0,113530.0,0.3031747]
[1754197420777,0.62930269,113540.0,113530.0,0.59158759]
[1754197422372,0.62730269,113540.0,113530.0,0.59158759]
[1754197422571,0.62830269,113540.0,113530.0,0.59158759]
[1754197422976,0.3398898,113540.0,113530.0,0.59158759]
[1754197423279,0.62830269,113540.0,113530.0,0.59158759]
[1754197424081,0.62730269,113540.0,113530.0,0.59158759]
[1754197424382,0.62930269,113540.0,113530.0,0.59158759]
[1754197425179,0.40907289,113540.0,113530.0,0.59158759]
[1754197425382,0.39556289,113540.0,113530.0,0.59158759]
[1754197425579,0.41018289,113540.0,113530.0,0.59158759]
[1754197429181,0.003,113540.0,113530.0,0.59158759]
[1754197429383,0.003,113540.0,113530.0,1.03167446]
[1754197429682,0.003,113540.0,113530.0,0.95238759]
[1754197429980,0.0258,113540.0,113530.0,1.03167446]
[1754197430178,0.05832,113540.0,113530.0,1.03167446]
[1754197432583,0.0258,113540.0,113530.0,1.03167446]
[1754197432778,0.0258,113540.0,113530.0,0.95238759]
[1754197435488,0.31421289,113540.0,113530.0,0.95238759]
[1754197436089,0.31321289,113540.0,113530.0,0.95238759]
[1754197437292,0.0248,113540.0,113530.0,0.95238759]
[1754197437593,0.40764289,113540.0,113530.0,0.6639747]
[1754197437790,0.58381609,113540.0,113530.0,0.95238759]
[1754197438293,0.58381609,113540.0,113530.0,0.6639747]
[1754197439894,0.58381609,113540.0,113530.0,0.95238759]
[1754197440094,0.2954032,113540.0,113530.0,0.95238759]
[1754197440285,0.58381609,113540.0,113530.0,0.95238759]
[1754197443597,0.58381609,113540.0,113530.0,0.6639747]
[1754197443796,0.58381609,113540.0,113530.0,0.95238759]
[1754197444396,0.58281609,113540.0,113530.0,0.95238759]
[1754197444901,0.58281609,113540.0,113530.0,0.6639747]
[1754197445294,0.58281609,113540.0,113530.0,0.95238759]
[1754197446403,0.58381609,113540.0,113530.0,0.95238759]
[1754197447300,0.2954032,113540.0,113530.0,0.95238759]
[1754197447695,0.58381609,113540.0,113530.0,0.6639747]
[1754197448199,0.58381609,113540.0,113530.0,0.2240686]
[1754197448396,0.94461609,113540.0,113530.0,0.2240686]
[1754197449909,0.94461609,113540.0,113530.0,0.2581786]
[1754197450116,0.94461609,113540.0,113530.0,0.2958986]
[1754197456816,0.6562032,113540.0,113530.0,0.2958986]
[1754197457015,0.58381609,113540.0,113530.0,0.58431149]
[1754197457315,0.58381609,113540.0,113530.0,0.2958986]
[1754197459820,0.58381609,113540.0,113530.0,0.58431149]
[1754197460320,0.58381609,113540.0,113530.0,0.2958986]
[1754197461121,0.2954032,113540.0,113530.0,0.2958986]
[1754197461321,0.58381609,113540.0,113530.0,0.2958986]
[1754197462323,0.58381609,113540.0,113530.0,0.58431149]
[1754197462525,0.57172609,113540.0,113530.0,0.58431149]
[1754197462724,0.58533609,113540.0,113530.0,0.58431149]
[1754197464428,0.58533609,113540.0,113530.0,0.2958986]
[1754197475038,0.58533609,113540.0,113530.0,0.58431149]
[1754197477539,0.2969232,113540.0,113530.0,0.58431149]
[1754197477729,0.58533609,113540.0,113530.0,0.58431149]
[1754197478037,0.2969232,113540.0,113530.0,0.58431149]
[1754197478227,0.58533609,113540.0,113530.0,0.58431149]
[1754197478430,0.57105609,113540.0,113530.0,0.58431149]
[1754197478637,0.58494609,113540.0,113530.0,0.58431149]
[1754197478938,0.2965332,113540.0,113530.0,0.58431149]
[1754197479337,0.58494609,113540.0,113530.0,0.94511149]
[1754197479639,0.40877289,113540.0,113530.0,0.94511149]
[1754197481737,0.58494609,113540.0,113530.0,0.94511149]
[1754197484339,0.58494609,113540.0,113530.0,0.6566986]
[1754197484639,0.58494609,113540.0,113530.0,0.94511149]
[1754197485138,0.49073609,113540.0,113530.0,0.94511149]
[1754197485340,0.58494609,113540.0,113530.0,0.94511149]
[1754197487337,0.002,113540.0,113530.0,0.94511149]
[1754197489139,0.002,113540.0,113530.0,1.02439836]
[1754197491337,0.002,113540.0,113530.0,0.73598547]
[1754197491532,0.002,113540.0,113530.0,1.02439836]
[1754197493944,0.001,113540.0,113530.0,1.02439836]
[1754197494144,0.002,113540.0,113530.0,1.02439836]
[1754197494344,0.001,113540.0,113530.0,1.02439836]
[1754197494752,0.002,113540.0,113530.0,1.02439836]
[1754197495847,0.002,113540.0,113530.0,0.73598547]
[1754197496046,0.002,113540.0,113530.0,1.02439836]
[1754197499052,0.002,113540.0,113530.0,1.38519836]
[1754197500450,0.002,113540.0,113530.0,1.09678547]
[1754197500850,0.002,113540.0,113530.0,1.38519836]
[1754197505372,0.002,113540.0,113530.0,1.30591149]
[1754197506566,0.08172,113540.0,113530.0,1.30591149]
[1754197507064,0.37013289,113540.0,113530.0,1.30591149]
[1754197507267,0.54530679,113540.0,113530.0,1.30591149]
[1754197507667,0.51343679,113540.0,113530.0,1.30591149]
[1754197507967,0.2250239,113540.0,113530.0,1.30591149]
[1754197508167,0.51343679,113540.0,113530.0,1.30591149]
[1754197508369,0.51443679,113540.0,113530.0,1.30591149]
[1754197508857,0.54630679,113540.0,113530.0,1.30591149]
[1754197512574,0.2578939,113540.0,113530.0,1.30591149]
[1754197512772,0.54630679,113540.0,113530.0,1.30591149]
[1754197514672,0.56107679,113540.0,113530.0,1.30591149]
[1754197515374,0.56107679,113540.0,113530.0,1.38519836]
[1754197515672,0.58270679,113540.0,113530.0,1.38519836]
[1754197518777,0.58270679,113540.0,113530.0,1.65163836]
[1754197521580,0.2942939,113540.0,113530.0,1.65163836]
[1754197521771,0.58270679,113540.0,113530.0,1.65163836]
[1754197524283,0.2942939,113540.0,113530.0,1.65163836]
[1754197524482,0.40653289,113540.0,113530.0,1.65163836]
[1754197529982,0.40653289,113540.0,113530.0,0.93003836]
[1754197530285,0.40653289,113540.0,113530.0,1.65163836]
[1754197532988,0.11812,113540.0,113530.0,1.65163836]
[1754197533189,0.40653289,113540.0,113530.0,1.65163836]
[1754197533487,0.11812,113540.0,113530.0,1.65163836]
[1754197533687,0.40653289,113540.0,113530.0,1.65163836]
[1754197534689,0.11812,113540.0,113530.0,1.65163836]
[1754197534989,0.40653289,113540.0,113530.0,1.65163836]
[1754197537087,0.40653289,113540.0,113530.0,1.57235149]
[1754197537287,0.11812,113540.0,113530.0,1.57235149]
[1754197537488,0.40653289,113540.0,113530.0,1.65166827]
[1754197538900,0.02734,113540.0,113530.0,1.36325538]
[1754197539090,0.58536679,113540.0,113530.0,0.64145538]
[1754197539594,0.58536679,113540.0,113530.0,0.73601538]
[1754197539786,0.58536679,113540.0,113530.0,1.00225538]
[1754197540094,0.2969539,113540.0,113530.0,1.00225538]
[1754197540296,0.58536679,113540.0,113530.0,1.02442827]
[1754197540596,0.58536679,113540.0,113530.0,1.29138827]
[1754197542094,0.58536679,113540.0,113530.0,1.00297538]
[1754197542686,0.58536679,113540.0,113530.0,1.29138827]
[1754197543195,0.2969539,113540.0,113530.0,1.29138827]
[1754197543391,0.58536679,113540.0,113530.0,1.29138827]
[1754197547198,0.58536679,113540.0,113530.0,0.93058827]
[1754197547395,0.40919289,113540.0,113530.0,1.29138827]
[1754197554101,0.58536669,113540.0,113530.0,1.29138827]
[1754197557702,0.57055669,113540.0,113530.0,1.00297538]
[1754197557903,0.58536669,113540.0,113530.0,1.00297538]
[1754197562009,0.58536669,113540.0,113530.0,0.9236586]
[1754197562800,0.58536669,113540.0,113530.0,0.6566986]
[1754197567311,0.58536669,113540.0,113530.0,0.73601581]
[1754197568812,0.002,113540.0,113530.0,0.69725581]
[1754197569000,0.002,113540.0,113530.0,0.6541586]
[1754197569206,0.002,113540.0,113530.0,1.0149586]
[1754197569704,0.002,113540.0,113530.0,1.30337149]
[1754197569905,0.002,113540.0,113530.0,1.0149586]
[1754197570300,0.002,113540.0,113530.0,1.30337149]
[1754197571314,0.001,113540.0,113530.0,1.30337149]
[1754197571817,0.40510289,113560.0,113550.0,0.2938384]
[1754197572016,0.40510289,113560.0,113550.0,0.94305129]
[1754197572217,0.11669,113560.0,113550.0,0.6546384]
[1754197572418,0.40510289,113560.0,113550.0,0.94305129]
[1754197573115,0.40510289,113560.0,113550.0,0.6546384]
[1754197573316,0.40510289,113560.0,113550.0,0.94305129]
[1754197573914,0.11669,113560.0,113550.0,0.94305129]
[1754197574215,0.40610289,113560.0,113550.0,0.6546384]
[1754197574817,0.11769,113560.0,113550.0,0.6546384]
[1754197575014,0.40810289,113560.0,113550.0,0.6546384]
[1754197575310,0.01541,113550.0,113540.0,0.6106036]
[1754197575517,0.69351578,113550.0,113540.0,0.4259775]
[1754197575707,0.40510289,113550.0,113540.0,0.4259775]
[1754197575907,0.40510289,113550.0,113540.0,0.7867775]
[1754197576103,0.40510289,113550.0,113540.0,0.4259775]
[1754197576311,0.40510289,113550.0,113540.0,0.7867775]
[1754197576514,0.40610289,113550.0,113540.0,0.7867775]
[1754197577518,0.40710289,113550.0,113540.0,0.7867775]
[1754197578718,0.69551578,113550.0,113540.0,0.7867775]
[1754197579220,0.40710289,113550.0,113540.0,0.7867775]
[1754197579620,0.40710289,113550.0,113540.0,0.85558784]
[1754197580614,0.11869,113550.0,113540.0,0.85558784]
[1754197580814,0.40710289,113550.0,113540.0,0.85558784]
[1754197583218,0.40710289,113550.0,113540.0,1.14400073]
[1754197584324,0.40710289,113550.0,113540.0,0.85558784]
[1754197585827,0.11869,113550.0,113540.0,0.85558784]
[1754197586028,0.40710289,113550.0,113540.0,0.85558784]
[1754197586927,0.87167538,113550.0,113540.0,0.49478784]
[1754197587226,1.23247538,113550.0,113540.0,0.29337544]
[1754197587619,1.23247538,113550.0,113540.0,0.36266544]
[1754197587818,0.6556496,113550.0,113540.0,0.36266544]
[1754197588029,1.23247538,113550.0,113540.0,0.36266544]
[1754197594832,0.87167538,113550.0,113540.0,0.36266544]
[1754197597637,0.69551578,113550.0,113540.0,0.36266544]
[1754197598134,0.11869,113550.0,113540.0,0.36266544]
[1754197598339,0.69551578,113550.0,113540.0,0.36266544]
[1754197598738,0.11869,113550.0,113540.0,0.36266544]
[1754197598936,0.69551578,113550.0,113540.0,0.36266544]
[1754197599334,0.87167548,113550.0,113540.0,0.36266544]
[1754197606246,0.87167548,113550.0,113540.0,0.44187443]
[1754197609445,0.002,113550.0,113540.0,1.31856303]
[1754197609646,0.002,113550.0,113540.0,0.74173725]
[1754197609948,0.002,113550.0,113540.0,0.82094624]
[1754197610139,0.002,113550.0,113540.0,1.10935913]
[1754197610340,0.002,113550.0,113540.0,0.82094624]
[1754197610541,0.002,113550.0,113540.0,0.74173725]
[1754197610845,0.002,113550.0,113540.0,1.03015014]